bitfinex-derivatives/quotes_BTCF0:USTF0_20250424
["timestamp","ask_amount","ask_price","bid_price","bid_amount"]
[1745514678981,1.03843101,93207.0,93206.0,0.00100007]
[1745514679279,1.10671101,93207.0,93206.0,0.00100007]
[1745514680378,0.85671101,93207.0,93206.0,0.00100007]
[1745514680581,1.10671101,93207.0,93206.0,0.00100007]
[1745514680781,0.85671101,93207.0,93206.0,0.00100007]
[1745514682268,0.85715101,93207.0,93206.0,0.00100007]
[1745514682672,0.78843101,93207.0,93206.0,0.00100007]
[1745514682979,0.85715101,93207.0,93206.0,0.00100007]
[1745514683483,0.85815101,93207.0,93206.0,0.00100007]
[1745514684780,0.85815101,93207.0,93206.0,7e-08]
[1745514686482,1.10815101,93207.0,93206.0,7e-08]
[1745514687386,0.85815101,93207.0,93206.0,7e-08]
[1745514687786,0.78943101,93207.0,93206.0,7e-08]
[1745514688085,0.85815101,93207.0,93206.0,7e-08]
[1745514689083,0.1072499,93201.0,93200.0,0.05955477]
[1745514689283,0.4680499,93201.0,93200.0,0.01345207]
[1745514689489,0.5753459,93201.0,93200.0,0.01345207]
[1745514689685,0.8253459,93201.0,93200.0,7e-08]
[1745514689878,0.8933459,93201.0,93200.0,7e-08]
[1745514690079,1.0653459,93201.0,93200.0,7e-08]
[1745514690883,1.0683459,93201.0,93200.0,7e-08]
[1745514691388,0.1072752,93179.0,93178.0,0.0335]
[1745514691687,0.8975952,93179.0,93178.0,0.1935]
[1745514692187,1.0695952,93179.0,93178.0,0.2279]
[1745514692384,1.1026952,93179.0,93178.0,0.2279]
[1745514692585,1.1036952,93179.0,93178.0,0.2309]
[1745514693184,1.1046952,93179.0,93178.0,0.2309]
[1745514694078,0.9326952,93179.0,93178.0,0.2309]
[1745514695186,1.1046952,93179.0,93178.0,0.2309]
[1745514696190,0.9326952,93179.0,93178.0,0.2309]
[1745514697885,0.8995952,93179.0,93178.0,0.2309]
[1745514698190,1.0715952,93179.0,93178.0,0.2309]
[1745514699183,0.8995952,93179.0,93178.0,0.2309]
[1745514702379,0.79232,93179.0,93178.0,0.3381763]
[1745514702583,0.8995952,93179.0,93178.0,0.3381763]
[1745514703185,0.8995952,93179.0,93178.0,0.5101763]
[1745514703584,0.8995952,93179.0,93178.0,0.4029]
[1745514703792,0.8308752,93179.0,93178.0,0.4029]
[1745514705298,0.8308752,93179.0,93178.0,0.2309]
[1745514705596,0.8308752,93179.0,93178.0,0.2632]
[1745514706493,0.8640752,93179.0,93178.0,0.2632]
[1745514707092,1.0360752,93179.0,93178.0,0.2632]
[1745514707895,1.0360752,93179.0,93178.0,0.1965]
[1745514708091,1.0360752,93179.0,93178.0,0.163]
[1745514708287,1.0662752,93179.0,93178.0,0.163]
[1745514709497,1.0360752,93179.0,93178.0,0.163]
[1745514712399,1.0360752,93179.0,93178.0,0.1956]
[1745514715189,1.1046352,93179.0,93178.0,0.163]
[1745514715596,1.1347352,93179.0,93178.0,0.163]
[1745514715816,1.1347352,93179.0,93178.0,0.003]
[1745514716004,0.1072775,93177.0,93176.0,3e-08]
[1745514716391,0.2146015,93177.0,93176.0,3e-08]
[1745514716692,0.2763015,93177.0,93176.0,3e-08]
[1745514717095,0.4483015,93177.0,93176.0,3e-08]
[1745514717294,0.4493015,93177.0,93176.0,3e-08]
[1745514717697,0.1072925,93164.0,93163.0,0.0316]
[1745514717893,0.8974525,93164.0,93163.0,0.1816]
[1745514718094,1.0694525,93164.0,93163.0,0.0616]
[1745514718295,1.0694525,93164.0,93163.0,0.2216]
[1745514719097,0.8974525,93164.0,93163.0,0.2216]
[1745514719899,0.90937712,93164.0,93163.0,0.2216]
[1745514720501,0.91037712,93164.0,93163.0,0.2216]
[1745514720895,0.8994525,93164.0,93163.0,0.2216]
[1745514722602,0.8994525,93164.0,93163.0,0.1816]
[1745514722802,0.9327525,93164.0,93163.0,0.1816]
[1745514723398,0.8308925,93164.0,93163.0,0.2016]
[1745514723604,0.1072877,93169.0,93163.0,0.63258649]
[1745514723806,0.1072924,93165.0,93164.0,0.1609359]
[1745514724002,0.1072924,93165.0,93164.0,0.3820822]
[1745514724204,0.1072924,93165.0,93164.0,0.8040822]
[1745514724997,0.1082924,93165.0,93164.0,0.8040822]
[1745514725403,0.1092924,93165.0,93164.0,0.8040822]
[1745514726407,0.1092924,93165.0,93164.0,0.5540822]
[1745514727001,0.1092924,93165.0,93164.0,0.4467462]
[1745514727208,0.1092924,93165.0,93164.0,0.5540822]
[1745514732811,0.002,93165.0,93164.0,0.5540822]
[1745514733112,0.1092913,93165.0,93164.0,0.5540822]
[1745514733309,0.002,93165.0,93164.0,0.9689822]
[1745514733699,0.1092913,93165.0,93164.0,0.9689822]
[1745514734102,0.1092913,93165.0,93164.0,0.788]
[1745514734303,0.1092913,93165.0,93164.0,0.808]
[1745514734502,0.1092913,93165.0,93164.0,0.648]
[1745514734706,0.1092913,93165.0,93164.0,0.808]
[1745514735101,0.1092913,93165.0,93164.0,0.636]
[1745514736008,0.1092913,93165.0,93164.0,0.673]
[1745514736210,0.5016913,93165.0,93164.0,0.6119]
[1745514737215,0.6736913,93165.0,93164.0,0.6119]
[1745514739122,0.6736913,93165.0,93164.0,0.197]
[1745514742310,0.6736913,93165.0,93164.0,0.195]
[1745514746218,0.6736913,93165.0,93159.0,0.00536714]
[1745514746219,0.92373601,93165.0,93159.0,4e-08]
[1745514746517,0.92373601,93165.0,93146.0,0.00107358]
[1745514746518,0.107312,93147.0,93146.0,0.00107358]
[1745514746710,0.542592,93147.0,93146.0,0.16107358]
[1745514747319,0.714592,93147.0,93146.0,0.16107358]
[1745514747519,0.778392,93147.0,93146.0,0.16107358]
[1745514748007,0.107319,93141.0,93127.0,0.21786712]
[1745514748207,0.1073339,93128.0,93127.0,0.15637752]
[1745514748413,0.4681339,93128.0,93127.0,0.27637752]
[1745514749113,0.7146139,93128.0,93127.0,0.12]
[1745514749516,0.5328,93128.0,93127.0,0.15]
[1745514749721,0.6401339,93128.0,93127.0,0.15]
[1745514749911,0.6411339,93128.0,93127.0,0.151]
[1745514750111,0.4691339,93128.0,93127.0,0.151]
[1745514750917,0.3608,93141.0,93127.0,0.29538]
[1745514751222,0.3925,93146.0,93138.0,0.1073218]
[1745514751421,0.1073201,93140.0,93139.0,0.092]
[1745514751722,0.1073201,93140.0,93139.0,0.221]
[1745514751921,0.0318,93145.0,93139.0,0.221]
[1745514752111,0.3608,93146.0,93145.0,0.1073144]
[1745514752314,0.3608,93146.0,93145.0,0.2673144]
[1745514752516,0.3608,93146.0,93139.0,0.061]
[1745514752517,0.1073201,93140.0,93139.0,0.0301]
[1745514752817,0.1073339,93128.0,93127.0,0.037]
[1745514753023,0.1073339,93128.0,93127.0,0.2171]
[1745514754520,0.1093339,93128.0,93127.0,0.32648]
[1745514754718,0.0574297,93132.0,93131.0,0.1073283]
[1745514754923,0.0574297,93132.0,93131.0,0.6181283]
[1745514755126,0.0574297,93132.0,93131.0,0.8975043]
[1745514756727,0.0594297,93132.0,93131.0,1.3124043]
[1745514757221,0.0604297,93132.0,93131.0,1.3134043]
[1745514758724,0.0604297,93132.0,93131.0,1.3504043]
[1745514760917,0.003,93132.0,93131.0,1.3504043]
[1745514761324,0.1103293,93132.0,93131.0,1.3504043]
[1745514761523,0.003,93132.0,93131.0,1.3504043]
[1745514762327,0.003,93132.0,93131.0,1.4248843]
[1745514762523,0.0536563,93147.0,93146.0,0.1073132]
[1745514762832,0.0536563,93147.0,93146.0,0.2473132]
[1745514763128,0.0536523,93154.0,93147.0,0.0536559]
[1745514763330,0.2146147,93154.0,93153.0,0.1073051]
[1745514763627,0.1609498,93161.0,93160.0,0.1072959]
[1745514763927,0.1609498,93161.0,93160.0,0.2472959]
[1745514764915,0.2145997,93161.0,93160.0,0.2472959]
[1745514765121,0.1072978,93161.0,93160.0,0.6080959]
[1745514765322,0.001,93161.0,93160.0,0.71743589]
[1745514765930,0.1082959,93161.0,93160.0,0.71743589]
[1745514766230,0.1082959,93161.0,93160.0,1.30433589]
[1745514766430,0.002,93161.0,93160.0,1.30633589]
[1745514766835,0.1092959,93161.0,93160.0,1.30633589]
[1745514767031,0.1092959,93161.0,93160.0,1.34333589]
[1745514767531,0.002,93161.0,93160.0,1.34333589]
[1745514769626,0.3608,93174.0,93173.0,0.1072821]
[1745514769824,0.4680809,93174.0,93173.0,0.2472821]
[1745514770226,0.4680809,93174.0,93173.0,0.3546101]
[1745514770423,0.3608,93174.0,93173.0,0.3546101]
[1745514770732,0.0536365,93181.0,93176.0,0.1072786]
[1745514770923,0.1083775,93177.0,93176.0,0.2472786]
[1745514771120,0.1083775,93177.0,93176.0,0.4192786]
[1745514772126,0.1083775,93177.0,93176.0,0.2472786]
[1745514772726,0.1113775,93177.0,93176.0,0.2482786]
[1745514772932,0.1143775,93177.0,93176.0,0.2492786]
[1745514773127,0.1113775,93177.0,93176.0,0.2482786]
[1745514773328,0.1143775,93177.0,93176.0,0.2492786]
[1745514774324,0.1143775,93177.0,93176.0,0.7715026]
[1745514776128,0.1143775,93177.0,93176.0,0.9435026]
[1745514776322,0.1143775,93177.0,93176.0,0.9749026]
[1745514779635,0.1447775,93177.0,93176.0,0.9749026]
[1745514779835,0.1447775,93177.0,93176.0,1.0527426]
[1745514780324,0.1447775,93177.0,93176.0,0.8807426]
[1745514782126,0.1447775,93177.0,93176.0,0.9135426]
[1745514783136,0.1447775,93177.0,93176.0,0.8062186]
[1745514786440,0.1447775,93177.0,93176.0,0.81720352]
[1745514788046,0.1447775,93177.0,93176.0,0.5569]
[1745514788345,0.1447775,93177.0,93161.0,0.1072959]
[1745514788346,0.1072948,93162.0,93161.0,0.1072959]
[1745514788532,0.1072948,93162.0,93161.0,0.2572959]
[1745514789047,0.1072948,93162.0,93161.0,0.15]
[1745514789249,0.1072959,93161.0,93160.0,0.037]
[1745514789440,0.4680959,93161.0,93160.0,0.177]
[1745514789634,0.1073155,93145.0,93144.0,0.0536576]
[1745514789950,0.1073155,93145.0,93144.0,0.1936576]
[1745514790147,0.3400155,93145.0,93144.0,0.1936576]
[1745514790734,0.3400155,93145.0,93144.0,0.3009731]
[1745514791144,0.2327,93145.0,93144.0,0.3009731]
[1745514791344,0.2327,93145.0,93144.0,0.3655731]
[1745514791848,0.2337,93145.0,93144.0,0.4021731]
[1745514792351,0.0617,93145.0,93144.0,0.3695731]
[1745514792538,0.0627,93145.0,93144.0,0.3715731]
[1745514793752,0.1700144,93145.0,93144.0,0.3715731]
[1745514795348,0.1700144,93145.0,93144.0,0.146]
[1745514795550,0.1700144,93145.0,93144.0,0.2533155]
[1745514796046,0.1700144,93145.0,93144.0,0.2903155]
[1745514799675,0.1700144,93145.0,93144.0,0.3217155]
[1745514799956,0.0627,93145.0,93144.0,0.3217155]
[1745514800156,0.002,93145.0,93144.0,0.4390755]
[1745514800357,0.002,93145.0,93144.0,0.4704755]
[1745514800551,0.002,93145.0,93144.0,0.8853755]
[1745514802060,0.1382005,93157.0,93156.0,0.1073017]
[1745514802250,0.1382005,93157.0,93156.0,0.2673017]
[1745514802951,0.0309,93157.0,93156.0,0.2673017]
[1745514803159,0.0321,93158.0,93157.0,0.1073005]
[1745514803346,0.03,93161.0,93160.0,0.1072971]
[1745514803547,0.3608,93162.0,93161.0,0.1072959]
[1745514803747,0.3608,93162.0,93161.0,0.2791959]
[1745514804942,0.0605,93165.0,93164.0,0.1072925]
[1745514805143,0.0605,93165.0,93164.0,0.2772925]
[1745514805451,0.3608,93172.0,93171.0,0.1072844]
[1745514805756,0.0305,93169.0,93168.0,0.1072879]
[1745514805965,0.1372786,93176.0,93175.0,0.1072798]
[1745514806255,0.03,93176.0,93175.0,0.2572798]
[1745514807251,0.0608,93176.0,93175.0,0.2572798]
[1745514807857,0.1680786,93176.0,93175.0,0.2572798]
[1745514808350,0.1710786,93176.0,93175.0,0.2582798]
[1745514808551,0.1740786,93176.0,93175.0,0.2592798]
[1745514812660,0.1740786,93176.0,93175.0,0.002]
[1745514812954,0.1740786,93176.0,93175.0,0.152]
[1745514813161,0.1740786,93176.0,93175.0,0.2592798]
[1745514813464,0.1740786,93176.0,93175.0,0.152]
[1745514820061,0.1072971,93160.0,93159.0,0.1824982]
[1745514820263,0.1072971,93160.0,93159.0,0.3224982]
[1745514821353,0.1383971,93160.0,93159.0,0.3244982]
[1745514821553,0.1383971,93160.0,93159.0,0.3570982]
[1745514821956,0.1393971,93160.0,93159.0,0.3590982]
[1745514823969,0.1393971,93160.0,93159.0,0.2192]
[1745514824962,0.1393971,93160.0,93159.0,0.3264982]
[1745514825776,0.1393971,93160.0,93159.0,0.2512982]
[1745514830288,0.1393971,93160.0,93159.0,0.144]
[1745514831289,0.3113971,93160.0,93159.0,0.144]
[1745514832174,0.1393971,93160.0,93159.0,0.144]
[1745514835581,0.1393971,93160.0,93159.0,0.2512982]
[1745514836488,0.1393971,93160.0,93159.0,0.2837982]
[1745514837485,0.1393971,93160.0,93159.0,0.1765]
[1745514838481,0.5001971,93160.0,93159.0,0.1765]
[1745514841787,0.5321971,93160.0,93159.0,0.1765]
[1745514846594,0.5321971,93160.0,93159.0,0.2837982]
[1745514846890,0.4700971,93160.0,93159.0,0.2837982]
[1745514847092,0.3628,93160.0,93159.0,0.4557982]
[1745514847292,0.002,93160.0,93159.0,0.4757982]
[1745514847597,0.1092971,93160.0,93159.0,0.4757982]
[1745514852496,0.1092971,93160.0,93159.0,0.5496382]
[1745514853105,0.002,93160.0,93159.0,0.5496382]
[1745514853288,0.1092971,93160.0,93159.0,0.5496382]
[1745514853993,0.002,93160.0,93159.0,0.5496382]
[1745514854298,0.1092971,93160.0,93159.0,0.5496382]
[1745514858700,0.4700971,93160.0,93159.0,0.5496382]
[1745514860399,0.0318,93169.0,93167.0,0.1072879]
[1745514860592,0.0536439,93168.0,93167.0,0.2472879]
[1745514861304,0.0536439,93168.0,93167.0,0.4192879]
[1745514861488,0.0536439,93168.0,93167.0,0.4202879]
[1745514861688,0.0536439,93168.0,93167.0,0.4212879]
[1745514862405,0.0546439,93168.0,93167.0,0.4202879]
[1745514863202,0.0883439,93168.0,93167.0,0.4192879]
[1745514867107,0.0883439,93168.0,93162.0,0.0536471]
[1745514867108,0.1609485,93160.0,93150.0,0.0536537]
[1745514867293,0.0536528,93153.0,93145.0,0.4149]
[1745514867601,0.4681086,93150.0,93149.0,0.3679844]
[1745514867804,0.4681086,93150.0,93149.0,0.4752941]
[1745514869010,0.48012863,93150.0,93149.0,0.155]
[1745514869303,0.6411086,93150.0,93149.0,0.035]
[1745514870198,0.6421086,93150.0,93149.0,0.017]
[1745514870399,0.74946461,93150.0,93149.0,0.017]
[1745514870607,0.81506461,93150.0,93149.0,0.017]
[1745514871004,0.81506461,93150.0,93149.0,0.007]
[1745514871205,0.81906461,93150.0,93149.0,0.005]
[1745514872005,0.82975445,93150.0,93149.0,0.005]
[1745514872205,0.83375445,93150.0,93149.0,0.002]
[1745514873313,0.82875445,93150.0,93149.0,0.001]
[1745514873516,0.83693615,93150.0,93149.0,0.001]
[1745514873717,0.84193615,93150.0,93149.0,0.001]
[1745514873906,1.09193615,93150.0,93149.0,0.001]
[1745514874304,1.08693615,93150.0,93149.0,0.001]
[1745514874503,1.09193615,93150.0,93149.0,0.001]
[1745514875010,0.1073144,93145.0,93137.0,0.00161049]
[1745514875216,0.4681144,93145.0,93137.0,0.00161049]
[1745514875409,0.82547441,93145.0,93137.0,0.00161049]
[1745514875813,0.63597441,93145.0,93137.0,0.00161049]
[1745514876118,0.80797441,93145.0,93144.0,0.038]
[1745514876311,0.81197441,93145.0,93144.0,0.038]
[1745514876511,1.06197441,93145.0,93144.0,1e-07]
[1745514877012,0.9546144,93145.0,93144.0,1e-07]
[1745514877212,1.06197441,93145.0,93144.0,1e-07]
[1745514877413,0.81797441,93145.0,93144.0,1e-07]
[1745514878719,0.1073293,93132.0,93131.0,0.037]
[1745514878925,0.5405693,93132.0,93131.0,0.107]
[1745514879215,0.7125693,93132.0,93131.0,0.107]
[1745514879618,0.7743693,93132.0,93131.0,0.107]
[1745514879916,0.7753693,93132.0,93131.0,0.108]
[1745514880711,0.8827453,93132.0,93131.0,0.108]
[1745514881121,0.8827453,93132.0,93131.0,0.038]
[1745514882020,0.8827453,93132.0,93131.0,0.0100618]
[1745514882322,0.1073339,93128.0,93127.0,1e-07]
[1745514882619,0.4681339,93128.0,93127.0,1e-07]
[1745514882920,0.5755139,93128.0,93127.0,1e-07]
[1745514883122,0.7475139,93128.0,93127.0,1e-07]
[1745514883516,0.7485139,93128.0,93127.0,1e-07]
[1745514884121,0.1073466,93117.0,93116.0,0.00107392]
[1745514884423,0.5405866,93117.0,93116.0,0.00107392]
[1745514884631,0.6479786,93117.0,93116.0,0.00107392]
[1745514885021,0.7104786,93117.0,93116.0,0.00107392]
[1745514885225,0.1073524,93112.0,93111.0,3e-08]
[1745514885525,0.1073651,93101.0,93100.0,0.105]
[1745514885721,0.5406051,93101.0,93100.0,0.275]
[1745514886326,0.6048051,93101.0,93100.0,0.275]
[1745514886716,0.6058051,93101.0,93100.0,0.275]
[1745514887822,0.6068051,93101.0,93100.0,0.277]
[1745514888016,0.6068051,93101.0,93100.0,0.149719]
[1745514888218,0.72508222,93101.0,93100.0,0.119719]
[1745514888527,0.1074031,93068.0,93063.0,0.00537268]
[1745514888730,0.4682031,93068.0,93067.0,0.34558805]
[1745514888926,0.64757111,93068.0,93067.0,0.24398805]
[1745514889118,0.64757111,93068.0,93067.0,0.21398805]
[1745514889616,0.1074078,93064.0,93063.0,0.00537268]
[1745514890217,0.4588198,93064.0,93063.0,0.01537268]
[1745514890412,0.4588198,93064.0,93063.0,0.00537268]
[1745514891227,0.2868198,93064.0,93063.0,0.00537268]
[1745514891620,0.2888198,93064.0,93063.0,0.00537268]
[1745514892319,0.2888198,93064.0,93063.0,0.01000008]
[1745514892627,0.2888198,93064.0,93057.0,0.0314]
[1745514892628,0.1074147,93058.0,93057.0,0.0314]
[1745514892833,0.4682147,93058.0,93057.0,0.02]
[1745514893127,0.5756747,93058.0,93057.0,0.02]
[1745514893517,0.6080747,93058.0,93057.0,0.02]
[1745514893724,0.1074158,93057.0,93056.0,2e-08]
[1745514894031,0.1074158,93057.0,93045.0,2e-08]
[1745514894032,0.1074285,93046.0,93045.0,2e-08]
[1745514894229,0.1074285,93046.0,93012.0,0.29559707]
[1745514894230,0.3608,93046.0,93012.0,0.21959707]
[1745514894416,0.3608,93046.0,93026.0,0.14107496]
[1745514894417,0.1074505,93027.0,93026.0,0.14107496]
[1745514895227,0.1074505,93027.0,93026.0,0.31307496]
[1745514895631,0.1084505,93027.0,93026.0,0.31307496]
[1745514895826,0.1397505,93027.0,93026.0,0.31307496]
[1745514896021,0.1407505,93027.0,93026.0,0.31307496]
[1745514896329,0.11752406,93027.0,93026.0,0.32307496]
[1745514897033,0.18082406,93027.0,93026.0,0.32307496]
[1745514897230,0.14852406,93027.0,93026.0,0.15107496]
[1745514897528,0.11752406,93027.0,93026.0,0.15107496]
[1745514897734,0.1094505,93027.0,93026.0,0.15107496]
[1745514898234,0.1094505,93027.0,93026.0,0.32307496]
[1745514899641,0.11758822,93027.0,93026.0,0.32307496]
[1745514900132,0.22508422,93027.0,93016.0,0.031]
[1745514900323,0.1074632,93016.0,93015.0,5e-08]
[1745514900524,0.1074805,93001.0,92996.0,0.00107531]
[1745514900726,0.69199621,93001.0,93000.0,0.135]
[1745514901032,0.90700471,93001.0,93000.0,0.105]
[1745514901535,0.0537409,93000.0,92996.0,0.00107531]
[1745514901723,0.0537409,93000.0,92992.0,0.14272831]
[1745514901724,0.1074898,92993.0,92992.0,0.14272831]
[1745514901930,0.4682898,92993.0,92992.0,0.14272831]
[1745514902126,0.5758258,92993.0,92992.0,0.11555151]
[1745514902324,0.718336,92993.0,92961.0,0.21644167]
[1745514902532,0.1075256,92962.0,92961.0,0.18781487]
[1745514902730,0.107536,92953.0,92952.0,0.10689356]
[1745514903028,0.829136,92953.0,92952.0,0.04331096]
[1745514903232,0.94488598,92953.0,92952.0,0.04331096]
[1745514903430,0.47650597,92953.0,92952.0,0.04331096]
[1745514903732,0.36896997,92953.0,92952.0,0.06331096]
[1745514903931,0.3608,92953.0,92952.0,0.04331096]
[1745514904123,0.3608,92984.0,92952.0,0.56089096]
[1745514904324,0.3608,92984.0,92960.0,0.15986652]
[1745514904632,0.0305,92992.0,92974.0,0.3608]
[1745514904822,0.1075106,92975.0,92974.0,0.5108]
[1745514905022,0.1075106,92975.0,92974.0,0.06]
[1745514905221,0.1075106,92975.0,92974.0,0.202]
[1745514905431,0.1075106,92975.0,92974.0,0.1204306]
[1745514905636,0.1075106,92975.0,92974.0,0.1104306]
[1745514905931,0.1075314,92957.0,92956.0,0.0642]
[1745514906138,0.1075314,92957.0,92956.0,0.3862]
[1745514907421,0.1085314,92957.0,92956.0,0.3862]
[1745514908128,0.3608,92980.0,92956.0,0.733776]
[1745514908324,0.1075155,92971.0,92965.0,0.0537605]
[1745514908520,0.3608,92983.0,92975.0,0.1075098]
[1745514908723,0.1075083,92977.0,92976.0,0.063]
[1745514909034,0.1075083,92977.0,92976.0,0.193]
[1745514909235,0.1075083,92977.0,92976.0,0.1612]
[1745514909428,0.1075083,92977.0,92975.0,0.172]
[1745514909429,0.1075094,92976.0,92975.0,0.0606229]
[1745514909736,0.1075094,92976.0,92936.0,0.001076]
[1745514909737,0.1075406,92949.0,92948.0,0.0312]
[1745514909924,0.1075418,92948.0,92937.0,0.0318]
[1745514910124,0.1387418,92948.0,92947.0,0.18]
[1745514910325,0.2463298,92948.0,92947.0,0.13]
[1745514910526,0.1387418,92948.0,92947.0,0.13]
[1745514910728,0.0312,92948.0,92947.0,0.297543]
[1745514910936,0.1075385,92952.0,92947.0,0.2]
[1745514911124,0.1075406,92949.0,92948.0,0.1164707]
[1745514911328,0.1075406,92949.0,92948.0,0.2227]
[1745514911737,0.4683406,92949.0,92948.0,0.2227]
[1745514912128,0.4683406,92949.0,92948.0,0.3947]
[1745514912739,0.4703406,92949.0,92948.0,0.3947]
[1745514913127,0.1095406,92949.0,92948.0,0.332]
[1745514913333,0.1095406,92949.0,92948.0,0.312]
[1745514913535,0.2171286,92949.0,92948.0,0.312]
[1745514913839,0.1719406,92949.0,92948.0,0.312]
[1745514914035,0.1398406,92949.0,92948.0,0.2921]
[1745514914336,0.1115406,92949.0,92948.0,0.3847]
[1745514914743,0.001,92949.0,92948.0,0.4922418]
[1745514914935,0.004,92949.0,92948.0,0.40294677]
[1745514915131,0.1115406,92949.0,92948.0,0.40294677]
[1745514915535,0.1115406,92949.0,92948.0,0.51048857]
[1745514915840,0.0537579,92971.0,92948.0,0.76053476]
[1745514916039,0.0537625,92963.0,92958.0,0.3608]
[1745514916235,0.1075279,92960.0,92959.0,0.064]
[1745514916543,0.1075279,92960.0,92959.0,0.3215291]
[1745514916736,0.1075279,92960.0,92959.0,0.6791011]
[1745514916939,0.1075279,92960.0,92959.0,0.51448264]
[1745514917235,0.1075279,92960.0,92959.0,0.332]
[1745514918142,0.1115279,92960.0,92959.0,0.332]
[1745514918338,0.004,92960.0,92959.0,0.4395291]
[1745514918643,0.0537553,92975.0,92965.0,0.1075221]
[1745514918841,0.21374821,92966.0,92965.0,0.6283221]
[1745514919239,0.107521,92966.0,92965.0,0.8003221]
[1745514919441,0.107521,92966.0,92965.0,0.60830417]
[1745514919646,0.107521,92966.0,92965.0,0.71582627]
[1745514919844,0.108521,92966.0,92965.0,0.60930417]
[1745514920040,0.108521,92966.0,92965.0,0.333]
[1745514920345,0.469321,92966.0,92965.0,0.333]
[1745514920543,0.500421,92966.0,92965.0,0.333]
[1745514920743,0.500421,92966.0,92965.0,0.31291425]
[1745514920943,0.500421,92966.0,92965.0,0.29291425]
[1745514920944,0.139621,92966.0,92965.0,0.29291425]
[1745514921451,0.0321,92967.0,92966.0,0.107521]
[1745514921652,0.0321,92967.0,92966.0,0.2283]
[1745514921653,0.1396198,92967.0,92966.0,0.2283]
[1745514921847,0.21245442,92991.0,92966.0,0.31586399]
[1745514922164,0.21245442,92991.0,92979.0,0.1075052]
[1745514922165,0.1075059,92980.0,92979.0,0.1075052]
[1745514922450,0.1075048,92980.0,92979.0,0.183]
[1745514922747,0.03,92980.0,92979.0,0.03]
[1745514922937,0.1375048,92980.0,92979.0,0.03]
[1745514923138,0.1375048,92980.0,92979.0,0.202]
[1745514923544,0.4983048,92980.0,92979.0,0.202]
[1745514924049,0.54274253,92980.0,92979.0,0.202]
[1745514924350,0.1075187,92969.0,92968.0,0.1075182]
[1745514924661,0.1075187,92969.0,92968.0,0.14]
[1745514924948,0.1075291,92959.0,92946.0,0.3608]
[1745514925147,0.1075291,92959.0,92958.0,0.6093702]
[1745514925353,0.1075291,92959.0,92958.0,0.7169462]
[1745514925548,0.1075246,92963.0,92958.0,0.609416]
[1745514925746,0.1075246,92963.0,92962.0,0.1075256]
[1745514925955,0.1075246,92963.0,92962.0,0.2675256]
[1745514926256,0.1075246,92963.0,92962.0,0.4395256]
[1745514926443,0.1075246,92963.0,92962.0,0.24751208]
[1745514926758,0.1075246,92963.0,92962.0,0.28751208]
[1745514927357,0.1075246,92963.0,92962.0,0.16990147]
[1745514927538,0.1085246,92963.0,92962.0,0.17090147]
[1745514927746,0.4703246,92963.0,92962.0,0.18090147]
[1745514928052,0.51476233,92963.0,92962.0,0.18090147]
[1745514928356,0.51476233,92963.0,92962.0,0.38842707]
[1745514928654,0.51476233,92963.0,92962.0,0.26090147]
[1745514928850,0.51376233,92963.0,92962.0,0.26090147]
[1745514929055,0.51476233,92963.0,92962.0,0.26090147]
[1745514930354,0.51376233,92963.0,92962.0,0.26090147]
[1745514930555,0.51476233,92963.0,92962.0,0.26290147]
[1745514931054,0.51376233,92963.0,92962.0,0.26190147]
[1745514931242,0.51476233,92963.0,92962.0,0.26290147]
[1745514931850,0.51376233,92963.0,92962.0,0.26190147]
[1745514932057,0.87556233,92963.0,92962.0,0.26290147]
[1745514932359,1.39258573,92963.0,92962.0,0.12490147]
[1745514932659,0.1075418,92948.0,92947.0,0.04]
[1745514932843,0.4683418,92948.0,92947.0,0.19]
[1745514933250,0.4683418,92948.0,92947.0,0.362]
[1745514933845,0.4693418,92948.0,92947.0,0.35291162]
[1745514934046,0.4703418,92948.0,92947.0,0.35391162]
[1745514935049,0.4693418,92948.0,92947.0,0.35291162]
[1745514935358,0.4703418,92948.0,92947.0,0.35391162]
[1745514935752,0.3628,92948.0,92947.0,0.48145462]
[1745514936051,0.56668913,92948.0,92947.0,0.48145462]
[1745514936252,0.70573093,92948.0,92947.0,0.28937073]
[1745514936452,0.73783093,92948.0,92947.0,0.28837073]
[1745514936959,0.37703093,92948.0,92947.0,0.28837073]
[1745514937258,0.37603093,92948.0,92947.0,0.28737073]
[1745514937461,0.37703093,92948.0,92947.0,0.28737073]
[1745514938065,0.37703093,92948.0,92947.0,0.12275353]
[1745514938261,0.37703093,92948.0,92947.0,0.23029653]
[1745514938761,0.20588913,92948.0,92947.0,0.23029653]
[1745514938963,0.20588913,92948.0,92947.0,0.267543]
[1745514939158,0.20588913,92948.0,92947.0,0.439543]
[1745514940064,0.31343093,92948.0,92947.0,0.439543]
[1745514940264,0.1594514,92952.0,92951.0,0.1075383]
[1745514940563,0.1594514,92952.0,92951.0,0.36397145]
[1745514940762,0.2669886,92952.0,92951.0,0.57909374]
[1745514941261,0.2689886,92952.0,92951.0,0.54712229]
[1745514941563,0.2719886,92952.0,92951.0,0.332]
[1745514941762,0.3357886,92952.0,92951.0,0.332]
[1745514942065,0.33805429,92952.0,92951.0,0.4395383]
[1745514942265,0.16671709,92952.0,92951.0,0.4395383]
[1745514942652,0.16671709,92952.0,92951.0,0.54712229]
[1745514942866,0.16471709,92952.0,92951.0,0.54812229]
[1745514943357,0.16271709,92952.0,92951.0,0.54812229]
[1745514943561,0.27125429,92952.0,92951.0,0.54912229]
[1745514944166,0.27125429,92952.0,92951.0,0.55012229]
[1745514944167,0.27025429,92952.0,92951.0,0.55012229]
[1745514944464,0.16371709,92952.0,92951.0,0.55012229]
[1745514945770,0.3608,92975.0,92962.0,0.1075256]
[1745514945771,0.52254636,92963.0,92962.0,0.1075256]
[1745514945967,0.16174636,92963.0,92962.0,0.6724256]
[1745514946162,0.16174636,92963.0,92962.0,0.9519976]
[1745514946667,0.16174636,92963.0,92962.0,0.9822976]
[1745514946856,0.16174636,92963.0,92962.0,0.9832976]
[1745514947063,0.0623,92982.0,92981.0,0.1075036]
[1745514947265,0.18866994,92983.0,92982.0,0.1075025]
[1745514947565,0.18513055,92987.0,92986.0,0.1074979]
[1745514947759,0.18513055,92987.0,92986.0,0.2474979]
[1745514947964,0.0309,92996.0,92992.0,0.1074909]
[1745514948165,0.0309,92996.0,92992.0,0.2674909]
[1745514948366,0.3608,93001.0,92992.0,0.3750269]
[1745514948768,0.0309,93002.0,92992.0,0.3750269]
[1745514948972,0.0309,93002.0,92996.0,0.1074863]
[1745514949172,0.0309,93002.0,92996.0,0.2574863]